bitfinex/quotes_BTCUSD_20250812
["timestamp","ask_amount","ask_price","bid_price","bid_amount"]
[1754979841772,0.0037963,118950.0,118940.0,2.48442044]
[1754979842006,0.0017663,118950.0,118940.0,4.31891663]
[1754979842257,0.0017663,118950.0,118940.0,4.32513663]
[1754979842499,0.0017663,118950.0,118940.0,4.32213663]
[1754979842773,0.0017663,118950.0,118940.0,2.28531719]
[1754979843238,0.0017663,118950.0,118940.0,2.28731719]
[1754979843470,0.0017663,118950.0,118940.0,2.31227764]
[1754979843678,0.0017663,118950.0,118940.0,1.49626117]
[1754979844057,0.0017663,118950.0,118940.0,1.49726117]
[1754979844269,0.0017663,118950.0,118940.0,1.50549894]
[1754979844480,0.0017663,118950.0,118940.0,1.53049894]
[1754979844685,0.0037963,118950.0,118940.0,1.53049894]
[1754979845663,0.00848302,118960.0,118950.0,0.21813787]
[1754979845866,0.00848302,118960.0,118950.0,7.26290002]
[1754979846205,0.00848302,118960.0,118950.0,7.24071446]
[1754979846422,0.00848302,118960.0,118950.0,7.26290002]
[1754979846641,0.0204,118980.0,118970.0,0.1931096]
[1754979846863,0.02048242,118980.0,118970.0,3.99981532]
[1754979847094,0.02048242,118980.0,118970.0,3.77611332]
[1754979847319,0.02048242,118980.0,118970.0,3.77933332]
[1754979847554,1e-08,118980.0,118970.0,4.64357979]
[1754979847780,1e-08,118980.0,118970.0,4.61357979]
[1754979848670,1e-08,118980.0,118970.0,4.61857979]
[1754979849114,1e-08,118980.0,118970.0,4.70216979]
[1754979849304,1e-08,118980.0,118970.0,3.71068332]
[1754979849519,0.00203001,118980.0,118970.0,3.83944332]
[1754979849733,0.00203001,118980.0,118970.0,2.29493532]
[1754979849933,0.00525001,118980.0,118970.0,2.44869532]
[1754979850134,0.00525001,118980.0,118970.0,2.42569532]
[1754979850416,0.00525001,118980.0,118970.0,2.45069532]
[1754979850621,0.00525001,118980.0,118970.0,1.47048132]
[1754979850826,0.00525001,118980.0,118970.0,1.59928132]
[1754979850950,0.02945001,118980.0,118970.0,1.21007932]
[1754979851460,0.02945001,118980.0,118970.0,1.34287932]
[1754979851668,0.04689903,118980.0,118970.0,1.04596972]
[1754979851874,0.04689903,118980.0,118970.0,1.21007932]
[1754979852064,0.04689903,118980.0,118970.0,1.33891932]
[1754979852421,0.04689903,118980.0,118970.0,1.34191932]
[1754979852614,0.04689903,118980.0,118970.0,1.33891932]
[1754979853551,0.04789903,118980.0,118970.0,1.33891932]
[1754979854728,0.02369903,118980.0,118970.0,0.52490285]
[1754979854928,0.02369903,118980.0,118970.0,1.33891932]
[1754979858490,0.02369903,118980.0,118970.0,1.21007932]
[1754979858722,0.02369903,118980.0,118970.0,1.34912132]
[1754979858999,0.02369903,118980.0,118970.0,1.34908132]
[1754979859926,0.02369903,118980.0,118970.0,1.34904132]
[1754979860135,0.02369903,118980.0,118970.0,1.22028132]
[1754979860338,0.02369903,118980.0,118970.0,1.34904132]
[1754979860593,0.02047903,118980.0,118970.0,1.34904132]
[1754979861237,0.00303001,118980.0,118970.0,1.35100132]
[1754979861465,0.00303001,118980.0,118970.0,1.35405132]
[1754979868511,0.00303001,118980.0,118970.0,1.34904132]
[1754979868780,0.00625001,118980.0,118970.0,1.34904132]
[1754979870358,0.00303001,118980.0,118970.0,1.34904132]
[1754979871857,0.00303001,118980.0,118970.0,1.35100132]
[1754979872070,0.00303001,118980.0,118970.0,1.35405132]
[1754979872706,0.00100001,118980.0,118970.0,1.35405132]
[1754979874010,0.00100001,118980.0,118970.0,2.39317072]
[1754979875413,0.00100001,118980.0,118970.0,2.33752372]
[1754979878015,1e-08,118980.0,118970.0,2.33752372]
[1754979878580,1e-08,118980.0,118970.0,2.33852372]
[1754979879366,1e-08,118980.0,118970.0,2.21852372]
[1754979879549,1e-08,118980.0,118970.0,2.32852372]
[1754979879952,1e-08,118980.0,118970.0,2.26091332]
[1754979883532,1e-08,118980.0,118970.0,3.09711535]
[1754979883737,1e-08,118980.0,118970.0,3.12211535]
[1754979883932,0.0002,118990.0,118980.0,0.16809547]
[1754979884133,0.00069003,118990.0,118980.0,6.71501466]
[1754979885962,0.00069003,118990.0,118980.0,6.73258466]
[1754979886169,0.00069003,118990.0,118980.0,6.73358466]
[1754979886779,0.00169003,118990.0,118980.0,6.73358466]
[1754979887233,0.00169003,118990.0,118980.0,6.76358466]
[1754979887424,0.00069003,118990.0,118980.0,6.76258466]
[1754979888533,0.00069003,118990.0,118980.0,6.76358466]
[1754979889110,0.00069003,118990.0,118980.0,6.76258466]
[1754979889454,0.00069003,118990.0,118980.0,6.76558466]
[1754979890285,0.00069003,118990.0,118980.0,6.76658466]
[1754979891269,0.00069003,118990.0,118980.0,6.74158466]
[1754979891405,0.00069003,118990.0,118980.0,6.76658466]
[1754979892004,0.00069003,118990.0,118980.0,7.03498466]
[1754979893858,0.00069003,118990.0,118980.0,7.00998466]
[1754979894464,0.00069003,118990.0,118980.0,7.03498466]
[1754979894837,0.00069003,118990.0,118980.0,6.90630466]
[1754979895038,0.00069003,118990.0,118980.0,7.03534466]
[1754979895269,0.00069003,118990.0,118980.0,6.90630466]
[1754979895815,0.00069003,118990.0,118980.0,6.69095666]
[1754979895952,0.00069003,118990.0,118980.0,6.56195666]
[1754979896172,0.00069003,118990.0,118980.0,6.69095666]
[1754979904353,6.492e-05,118990.0,118980.0,6.69095666]
[1754979905746,6.492e-05,118990.0,118980.0,6.56195666]
[1754979906075,6.492e-05,118990.0,118980.0,6.69075666]
[1754979906306,6.492e-05,118990.0,118980.0,6.69071666]
[1754979906709,0.00209492,118990.0,118980.0,2.84538319]
[1754979906875,0.00209492,118990.0,118980.0,2.84342319]
[1754979907085,0.00209492,118990.0,118980.0,3.66241966]
[1754979907500,0.00209492,118990.0,118980.0,2.30095619]
[1754979907701,0.00209492,118990.0,118980.0,2.42971619]
[1754979907884,0.00513492,118990.0,118980.0,2.42971619]
[1754979908086,0.00209492,118990.0,118980.0,3.24373266]
[1754979908479,0.00209492,118990.0,118980.0,3.24871266]
[1754979909710,0.00209492,118990.0,118980.0,2.98031266]
[1754979911161,6.492e-05,118990.0,118980.0,2.98031266]
[1754979913012,6.492e-05,118990.0,118980.0,2.99051466]
[1754979914337,6.16e-06,118990.0,118980.0,2.99051466]
[1754979914899,6.16e-06,118990.0,118980.0,3.01270022]
[1754979915468,6.16e-06,118990.0,118980.0,3.03770022]
[1754979915682,6.16e-06,118990.0,118980.0,3.33110022]
[1754979917238,6.16e-06,118990.0,118980.0,3.28391466]
[1754979917469,6.16e-06,118990.0,118980.0,3.30891466]
[1754979917716,6.16e-06,118990.0,118980.0,3.28391466]
[1754979917929,6.16e-06,118990.0,118980.0,3.30891466]
[1754979918153,6.16e-06,118990.0,118980.0,3.28391466]
[1754979918376,6.16e-06,118990.0,118980.0,3.30891466]
[1754979919256,6.16e-06,118990.0,118980.0,3.04051466]
[1754979919724,6.16e-06,118990.0,118980.0,3.14051466]
[1754979920395,6.16e-06,118990.0,118980.0,3.11551466]
[1754979920608,6.16e-06,118990.0,118980.0,3.14051466]
[1754979922521,6.16e-06,118990.0,118980.0,3.16270022]
[1754979923264,6.16e-06,118990.0,118980.0,3.13770022]
[1754979923751,6.16e-06,118990.0,118980.0,3.11551466]
[1754979924389,0.00024743,119000.0,118990.0,0.16808135]
[1754979924635,0.00024743,119000.0,118990.0,7.13958754]
[1754979924842,0.00024743,119000.0,118990.0,7.14255754]
[1754979925458,0.00024743,119000.0,118990.0,7.1897431]
[1754979925670,0.00024743,119000.0,118990.0,7.16755754]
[1754979925878,0.00024743,119000.0,118990.0,7.16855754]
[1754979927135,0.18506764,119070.0,119020.0,0.16803898]
[1754979927136,0.18831942,119040.0,119020.0,0.16803898]
[1754979927312,0.21175942,119040.0,119030.0,1.02537972]
[1754979927516,0.21271637,119040.0,119030.0,1.14537972]
[1754979927721,0.0363034,119040.0,119030.0,1.32190147]
[1754979927922,0.02439695,119040.0,119030.0,2.13591794]
[1754979928130,0.02439695,119040.0,119030.0,1.32190147]
[1754979929232,0.02490695,119040.0,119030.0,1.32190147]
[1754979929436,0.02690695,119040.0,119030.0,1.32190147]
[1754979930216,0.02639695,119040.0,119030.0,1.34675987]
[1754979932068,0.02439695,119040.0,119030.0,1.34675987]
[1754979932346,0.02539695,119040.0,119030.0,1.34675987]
[1754979932736,0.02590695,119040.0,119030.0,1.34675987]
[1754979933153,0.14976069,119050.0,119030.0,1.34675987]
[1754979933352,0.16720971,119050.0,119040.0,0.94269647]
[1754979933557,0.16720971,119050.0,119040.0,1.13541972]
[1754979933757,0.16720971,119050.0,119040.0,0.489414]
[1754979934020,0.17560954,119050.0,119040.0,1.30343047]
[1754979934947,0.17660954,119050.0,119040.0,1.30343047]
[1754979935531,0.17560954,119050.0,119040.0,1.30343047]
[1754979935860,0.17760954,119050.0,119040.0,0.489414]
[1754979936480,0.17760954,119050.0,119040.0,1.30343047]
[1754979936660,0.17760954,119050.0,119040.0,0.489414]
[1754979936851,0.17760954,119050.0,119040.0,1.13541972]
[1754979937261,0.17760954,119050.0,119040.0,0.32140325]
[1754979938307,0.17760954,119050.0,119040.0,1.13541972]
[1754979939140,0.17760954,119050.0,119040.0,0.32140325]
[1754979939373,0.17760954,119050.0,119040.0,1.13541972]
[1754979939515,0.17760954,119050.0,119040.0,0.32140325]
[1754979939726,0.17760954,119050.0,119040.0,1.13541972]
[1754979940288,0.17760954,119050.0,119040.0,0.32140325]
[1754979940492,0.17760954,119050.0,119040.0,1.13541972]
[1754979940627,0.17760954,119050.0,119040.0,0.19272325]
[1754979940835,0.99162601,119050.0,119040.0,0.23912]
[1754979941039,1.01636601,119050.0,119040.0,0.23912]
[1754979941281,1.01636601,119050.0,119040.0,0.11]
[1754979941918,0.20234954,119050.0,119040.0,0.11]
[1754979942284,1.01636601,119050.0,119040.0,0.11]
[1754979942879,0.20234954,119050.0,119040.0,0.11]
[1754979943732,0.20234954,119050.0,119040.0,0.23916]
[1754979944306,0.17760954,119050.0,119040.0,0.23916]
[1754979944694,0.17760954,119050.0,119040.0,1.13589972]
[1754979944944,0.17760954,119050.0,119040.0,0.32188325]
[1754979945585,0.17760954,119050.0,119040.0,0.19272325]
[1754979945759,0.17760954,119050.0,119040.0,0.32192325]
[1754979949283,0.17760954,119050.0,119040.0,0.19272325]
[1754979949586,0.17760954,119050.0,119040.0,0.32192325]
[1754979949880,0.16010954,119050.0,119040.0,0.32192325]
[1754979950307,0.16010954,119050.0,119040.0,1.13894972]
[1754979950516,0.16010954,119050.0,119040.0,1.30902047]
[1754979951513,0.01944902,119050.0,119040.0,1.30902047]
[1754979954689,0.01944902,119050.0,119040.0,2.12303694]
[1754979955080,0.002,119050.0,119040.0,2.12303694]
[1754979955318,0.002,119050.0,119040.0,1.30902047]
[1754979956722,0.002,119050.0,119040.0,0.545004]
[1754979956852,0.002,119050.0,119040.0,1.35902047]
[1754979958200,0.002,119050.0,119040.0,0.545004]
[1754979958417,0.002,119050.0,119040.0,1.35902047]
[1754979959049,0.002,119050.0,119040.0,0.545004]
[1754979959260,0.002,119050.0,119040.0,1.35902047]
[1754979960253,0.002,119050.0,119040.0,2.17303694]
[1754979960459,0.002,119050.0,119040.0,1.35902047]
[1754979960961,0.002,119050.0,119040.0,2.17303694]
[1754979961431,0.002,119050.0,119040.0,0.545004]
[1754979961841,0.002,119050.0,119040.0,2.17303694]
[1754979962539,0.01764902,119070.0,119060.0,0.16798252]
[1754979962778,0.01764902,119070.0,119060.0,1.30730224]
[1754979962989,0.01764902,119070.0,119060.0,1.31031224]
[1754979963193,0.01764902,119070.0,119060.0,0.49629577]
[1754979963402,0.01764902,119070.0,119060.0,1.31031224]
[1754979964423,0.01964902,119070.0,119060.0,1.31031224]
[1754979965252,0.18761744,119070.0,119060.0,1.31031224]
[1754979965862,0.01964902,119070.0,119060.0,0.49629577]
[1754979966072,0.01964902,119070.0,119060.0,1.31031224]
[1754979967270,0.0022,119070.0,119060.0,1.31031224]
[1754979968234,0.0022,119070.0,119060.0,1.31063224]
[1754979969213,0.0022,119070.0,119060.0,1.33584724]
[1754979971026,0.18300551,119080.0,119060.0,1.33584724]
[1754979971234,0.20060143,119080.0,119070.0,1.02745972]
[1754979971410,0.20060143,119080.0,119070.0,1.12745972]
[1754979971894,0.20060143,119080.0,119070.0,1.12741972]
[1754979972397,0.20260143,119080.0,119070.0,1.13058972]
[1754979972923,0.20060143,119080.0,119070.0,1.13058972]
[1754979973131,0.20260143,119080.0,119070.0,1.13058972]
[1754979973522,0.20260143,119080.0,119070.0,1.13884723]
[1754979974546,0.20260143,119080.0,119070.0,0.32483076]
[1754979974758,0.20260143,119080.0,119070.0,1.13884723]
[1754979975602,0.20260143,119080.0,119070.0,1.30877565]
[1754979977320,0.20260143,119080.0,119070.0,1.14080723]
[1754979978357,0.20260143,119080.0,119070.0,0.31332325]
[1754979978778,0.20260143,119080.0,119070.0,0.18272325]
[1754979978988,1.0166179,119080.0,119070.0,0.1]
[1754979979163,1.0166179,119080.0,119070.0,0.2306]
[1754979979439,0.20260143,119080.0,119070.0,0.2306]
[1754979980580,0.20260143,119080.0,119070.0,0.1]
[1754979980783,0.20260143,119080.0,119070.0,0.2306]
[1754979980993,1.0166179,119080.0,119070.0,0.1]
[1754979981195,1.0166179,119080.0,119070.0,0.23056]
[1754979981400,1.0166179,119080.0,119070.0,0.1]
[1754979981589,1.83063437,119080.0,119070.0,0.1]
[1754979981793,0.21045728,119080.0,119070.0,0.1]
[1754979982047,1.02447375,119080.0,119070.0,0.1]
[1754979982242,1.02247375,119080.0,119070.0,0.1]
[1754979985283,0.20845728,119080.0,119070.0,0.1]
[1754979985624,0.20060143,119080.0,119070.0,0.23176]
[1754979985825,0.20060143,119080.0,119070.0,0.23493]
[1754979986552,0.20060143,119080.0,119070.0,1.36920854]
[1754979986553,0.0151968,119080.0,119070.0,1.36920854]
[1754979987231,0.0151968,119080.0,119070.0,0.55519207]
[1754979987362,0.03264582,119080.0,119070.0,0.55519207]
[1754979987565,0.0151968,119080.0,119070.0,0.55519207]
[1754979987770,0.0161968,119080.0,119070.0,0.57519207]
[1754979987987,0.83121327,119080.0,119070.0,0.57519207]
[1754979988410,0.84866229,119080.0,119070.0,0.57519207]
[1754979988815,0.84666229,119080.0,119070.0,0.57519207]
[1754979989191,1.0146166,119080.0,119070.0,0.27546365]
[1754979989398,1.0146166,119080.0,119070.0,0.33957325]
[1754979990415,1.0146166,119080.0,119070.0,0.50754167]
[1754979990685,1.0156166,119080.0,119070.0,0.50754167]
[1754979992543,1.0166166,119080.0,119070.0,0.50754167]
[1754979994154,0.84866229,119080.0,119070.0,0.50754167]
[1754979996600,0.20260013,119080.0,119070.0,0.12513]
[1754979996812,1.0166166,119080.0,119070.0,0.25465]
[1754979997251,1.0166166,119080.0,119070.0,0.25661]
[1754979997666,0.20260013,119080.0,119070.0,0.42457842]
[1754979997872,0.20260013,119080.0,119070.0,0.50730167]
[1754979999107,0.20260013,119080.0,119070.0,0.33933325]
[1754980000388,0.03464582,119080.0,119070.0,1.32131814]
[1754980001542,0.20260013,119080.0,119070.0,1.32131814]
[1754980002183,0.03464582,119080.0,119070.0,1.32131814]
[1754980005545,0.03364582,119080.0,119070.0,1.32131814]
[1754980006255,0.0151968,119080.0,119070.0,1.43339814]
[1754980006452,0.0151968,119080.0,119070.0,1.31339814]
[1754980006655,0.0151968,119080.0,119070.0,1.32339814]
[1754980007087,0.0161968,119080.0,119070.0,1.21131814]
[1754980007636,0.0151968,119080.0,119070.0,0.39730167]
[1754980007858,0.0151968,119080.0,119070.0,1.21131814]
[1754980008440,0.0151968,119080.0,119070.0,1.21231814]
[1754980009870,0.0151968,119080.0,119070.0,1.21187814]
[1754980010075,0.0151968,119080.0,119070.0,1.41785714]
[1754980010256,0.0049948,119080.0,119070.0,1.41785714]
[1754980010706,0.0049948,119080.0,119070.0,1.21187814]
[1754980012567,0.0049948,119080.0,119070.0,1.08083814]
[1754980012821,0.0049948,119080.0,119070.0,1.21175814]
[1754980013612,0.02244382,119080.0,119070.0,0.26682167]
[1754980013855,0.02244382,119080.0,119070.0,1.21175814]
[1754980014442,0.02244382,119080.0,119070.0,0.39774167]
[1754980014665,0.02244382,119080.0,119070.0,1.21175814]
[1754980014854,0.19039813,119080.0,119070.0,0.39578167]
[1754980015206,0.19039813,119080.0,119070.0,0.39574167]
[1754980015426,0.19039813,119080.0,119070.0,0.26486167]
[1754980015660,0.19039813,119080.0,119070.0,0.39574167]
[1754980016072,0.19039813,119080.0,119070.0,0.26486167]
[1754980016233,0.19039813,119080.0,119070.0,0.39574167]
[1754980016627,0.19039813,119080.0,119070.0,0.39784167]
[1754980018290,0.19039813,119080.0,119070.0,1.21185814]
[1754980018852,0.02244382,119080.0,119070.0,1.21185814]
[1754980019326,0.19039813,119080.0,119070.0,1.21185814]
[1754980021099,0.02244382,119080.0,119070.0,1.21185814]
[1754980021460,0.02244382,119080.0,119070.0,1.08097814]
[1754980021659,0.02244382,119080.0,119070.0,1.21173814]
[1754980021858,0.02244382,119080.0,119070.0,1.26173814]
[1754980022691,0.19039813,119080.0,119070.0,1.26173814]
[1754980023070,1.0044146,119080.0,119070.0,0.19172]
[1754980023271,0.19039813,119080.0,119070.0,0.19172]
[1754980024068,0.19039813,119080.0,119070.0,0.19494]
[1754980027320,0.18291813,119080.0,119070.0,0.23428842]
[1754980027554,0.18291813,119080.0,119070.0,0.36504842]
[1754980027773,0.18291813,119080.0,119070.0,1.17906489]
[1754980027991,0.18291813,119080.0,119070.0,0.19708]
[1754980028420,0.18291813,119080.0,119070.0,0.36504842]
[1754980029308,0.18291813,119080.0,119070.0,1.17906489]
[1754980030525,0.18291813,119080.0,119070.0,0.36504842]
[1754980030735,0.18291813,119080.0,119070.0,1.17906489]
[1754980031557,0.18291813,119080.0,119070.0,0.36504842]
[1754980031764,0.18291813,119080.0,119070.0,1.17906489]
[1754980031936,0.18291813,119080.0,119070.0,0.36504842]
[1754980033445,0.18291813,119080.0,119070.0,1.17906489]
[1754980034981,0.18291813,119080.0,119070.0,1.01109647]
[1754980035198,0.18291813,119080.0,119070.0,0.19708]
[1754980035406,0.18291813,119080.0,119070.0,0.88033647]
[1754980036022,0.18291813,119080.0,119070.0,1.01089647]
[1754980036388,0.18291813,119080.0,119070.0,0.19688]
[1754980036603,0.18291813,119080.0,119070.0,0.19478]
[1754980038636,0.18291813,119080.0,119070.0,0.19156]
[1754980039250,0.18291813,119080.0,119070.0,0.19477]
[1754980039998,0.18276697,119080.0,119070.0,0.19477]
[1754980041229,0.18276697,119080.0,119070.0,0.19677]
[1754980042443,0.18276697,119080.0,119070.0,1.17875489]
[1754980043829,0.01481266,119080.0,119070.0,1.26147814]
[1754980044709,0.18276697,119080.0,119070.0,0.44746167]
[1754980044911,0.18276697,119080.0,119070.0,1.26147814]
[1754980045519,0.18276697,119080.0,119070.0,0.44746167]
[1754980045695,0.18276697,119080.0,119070.0,1.26147814]
[1754980045906,0.01481266,119080.0,119070.0,1.26147814]
[1754980046302,0.18276697,119080.0,119070.0,1.26147814]
[1754980048839,0.18276697,119080.0,119070.0,0.44746167]
[1754980049177,0.18276697,119080.0,119070.0,1.26147814]
[1754980049982,0.01481266,119080.0,119070.0,1.26147814]
[1754980050152,0.18276697,119080.0,119070.0,1.26147814]
[1754980050789,0.18276697,119080.0,119070.0,0.44746167]
[1754980051019,0.01481266,119080.0,119070.0,1.26147814]
[1754980053734,0.18276697,119080.0,119070.0,1.26147814]
[1754980054418,0.01481266,119080.0,119070.0,1.26147814]
[1754980054634,0.01481266,119080.0,119070.0,1.37147814]
[1754980057789,0.01481266,119080.0,119070.0,1.24091814]
[1754980057996,0.18276697,119080.0,119070.0,1.37123814]
[1754980058204,0.01481266,119080.0,119070.0,1.37123814]
[1754980061990,0.01481266,119080.0,119070.0,0.55722167]
[1754980062143,0.01481266,119080.0,119070.0,1.37123814]
[1754980066732,0.18276697,119080.0,119070.0,1.24091814]
[1754980066940,0.18276697,119080.0,119070.0,1.37107814]
[1754980067159,0.01481266,119080.0,119070.0,1.37107814]
[1754980067586,0.18276697,119080.0,119070.0,1.37107814]
[1754980068868,0.18276697,119080.0,119070.0,1.38789814]
[1754980069067,0.18276697,119080.0,119070.0,0.25893325]
[1754980069278,0.99678344,119080.0,119070.0,0.171]
[1754980069488,0.18276697,119080.0,119070.0,0.28108]
[1754980070956,0.18276697,119080.0,119070.0,0.151]
[1754980071163,0.18276697,119080.0,119070.0,0.101]
[1754980072040,0.18276697,119080.0,119070.0,0.201]
[1754980072194,1.12682344,119080.0,119070.0,0.201]
[1754980072406,1.13469263,119080.0,119070.0,0.221]
[1754980072611,1.13469263,119080.0,119070.0,0.101]
[1754980072811,1.15991563,119080.0,119070.0,0.101]
[1754980073215,1.15991563,119080.0,119070.0,0.1]
[1754980073596,1.16091563,119080.0,119070.0,0.1]
[1754980073952,1.1609094,119080.0,119070.0,0.1]
[1754980074379,1.1619094,119080.0,119070.0,0.1]
[1754980075195,1.16190681,119080.0,119070.0,0.1]
[1754980077705,1.24463006,119080.0,119070.0,0.1]
[1754980078403,1.2446243,119080.0,119070.0,0.1]
[1754980080414,1.24462143,119080.0,119070.0,0.1]
[1754980080821,0.43060496,119080.0,119070.0,0.1]
[1754980081023,1.24462143,119080.0,119070.0,0.1]
[1754980081625,0.43060496,119080.0,119070.0,0.1]
[1754980081839,1.24462143,119080.0,119070.0,0.1]
[1754980082468,0.43060496,119080.0,119070.0,0.1]
[1754980082648,1.24462143,119080.0,119070.0,0.1]
[1754980085776,0.43060496,119080.0,119070.0,0.10507]
[1754980085998,0.34002997,119080.0,119070.0,0.91908647]
[1754980086148,0.30003431,119080.0,119070.0,1.07669687]
[1754980086351,0.31748333,119080.0,119070.0,1.07669687]
[1754980086659,0.30003431,119080.0,119070.0,1.07669687]
[1754980086857,0.31648333,119080.0,119070.0,1.07669687]
[1754980087042,0.29803431,119080.0,119070.0,1.07669687]
[1754980087245,0.31648333,119080.0,119070.0,1.00908647]
[1754980087472,0.31748333,119080.0,119070.0,1.00908647]
[1754980090653,0.31748333,119080.0,119070.0,1.03908647]
[1754980090861,0.14952902,119080.0,119070.0,1.28977814]
[1754980091075,0.18740333,119080.0,119070.0,1.28977814]
[1754980095229,0.01944902,119080.0,119070.0,1.28977814]
[1754980095454,0.01944902,119080.0,119070.0,1.27977814]
[1754980098392,0.18740333,119080.0,119070.0,1.27977814]
[1754980100978,0.18740333,119080.0,119070.0,1.11180972]
[1754980101179,0.18740333,119080.0,119070.0,1.27977814]
[1754980103282,0.01944902,119080.0,119070.0,1.27977814]
[1754980103930,0.18740333,119080.0,119070.0,1.27977814]
[1754980105232,0.01944902,119080.0,119070.0,1.27977814]
[1754980107323,0.18740333,119080.0,119070.0,1.27977814]
[1754980108683,0.18740333,119080.0,119070.0,1.24152972]
[1754980108897,0.18740333,119080.0,119070.0,1.40949814]
[1754980111743,0.18740333,119080.0,119070.0,1.24152972]
[1754980112177,0.18740333,119080.0,119070.0,1.11180972]
[1754980112391,0.18740333,119080.0,119070.0,1.24144972]
[1754980112599,0.18740333,119080.0,119070.0,1.11180972]
[1754980112806,0.18740333,119080.0,119070.0,1.15868647]
[1754980114494,0.18740333,119080.0,119070.0,0.34467]
[1754980114676,0.18740333,119080.0,119070.0,1.15868647]
[1754980117289,0.18740333,119080.0,119070.0,1.32665489]
[1754980121704,0.01944902,119080.0,119070.0,1.29937814]
[1754980121863,0.01944902,119080.0,119070.0,1.37937814]
[1754980123362,0.18740333,119080.0,119070.0,1.37937814]
[1754980124695,0.01944902,119080.0,119070.0,1.78437433]
[1754980126630,0.01844902,119080.0,119070.0,1.78437433]
[1754980126831,0.01744902,119080.0,119070.0,1.78437433]
[1754980127065,0.01844902,119080.0,119070.0,1.78437433]
[1754980128673,0.01944902,119080.0,119070.0,1.78437433]
[1754980130000,0.18740333,119080.0,119070.0,1.78437433]
[1754980130162,0.01944902,119080.0,119070.0,1.78437433]
[1754980131024,0.18740333,119080.0,119070.0,1.78437433]
[1754980135517,0.18740333,119080.0,119070.0,1.00162958]
[1754980135724,0.18740333,119080.0,119070.0,1.174518]
[1754980137862,0.18740333,119080.0,119070.0,0.56501167]
[1754980138065,0.18740333,119080.0,119070.0,1.174518]
[1754980140667,0.18740333,119080.0,119070.0,1.00654958]
[1754980141393,0.31680333,119080.0,119070.0,1.00654958]
[1754980142043,0.18740333,119080.0,119070.0,1.00662958]
[1754980143893,0.18740333,119080.0,119070.0,0.87714958]
[1754980144108,0.18740333,119080.0,119070.0,1.00662958]
[1754980144312,0.18740333,119080.0,119070.0,0.79442633]
[1754980144575,0.18740333,119080.0,119070.0,0.79243633]
[1754980145087,0.18691132,119080.0,119070.0,0.79243633]
[1754980146188,0.18691132,119080.0,119070.0,0.18293]
[1754980146371,0.18691132,119080.0,119070.0,0.79243633]
[1754980147049,0.18691132,119080.0,119070.0,0.78950633]
[1754980147462,0.18691132,119080.0,119070.0,0.18]
[1754980147693,0.18691132,119080.0,119070.0,0.22]
[1754980147694,0.19478494,119080.0,119070.0,0.22]
[1754980147898,0.19478494,119080.0,119070.0,0.82950633]
[1754980148511,0.18691132,119080.0,119070.0,0.82950633]
[1754980148729,0.18691132,119080.0,119070.0,0.22]
[1754980149147,0.18691132,119080.0,119070.0,0.83243633]
[1754980150298,0.18691132,119080.0,119070.0,0.22293]
[1754980150512,0.18691132,119080.0,119070.0,0.83243633]
[1754980151735,0.18691132,119080.0,119070.0,0.22293]
[1754980151879,0.18691132,119080.0,119070.0,0.83243633]
[1754980152904,0.18691132,119080.0,119070.0,0.22293]
[1754980153115,0.18691132,119080.0,119070.0,0.83243633]
[1754980156088,0.18691132,119080.0,119070.0,0.22293]
[1754980156289,0.18691132,119080.0,119070.0,0.83243633]
[1754980157337,0.18691132,119080.0,119070.0,0.83451633]
[1754980159629,0.18691132,119080.0,119070.0,0.96391633]
[1754980167639,0.18691132,119080.0,119070.0,0.83451633]
[1754980168805,0.18691132,119080.0,119070.0,1.13188475]
[1754980169055,0.18691132,119080.0,119070.0,1.82411433]
[1754980171235,0.18691132,119080.0,119070.0,1.214608]
[1754980171674,0.18691132,119080.0,119070.0,1.264608]
[1754980171901,0.18691132,119080.0,119070.0,1.09663958]
[1754980172127,0.18691132,119080.0,119070.0,0.27293]
[1754980172356,0.18691132,119080.0,119070.0,0.88243633]
[1754980172802,0.18691132,119080.0,119070.0,0.27]
[1754980173028,0.19478178,119080.0,119070.0,0.87950633]
[1754980173679,0.19478178,119080.0,119070.0,0.88266633]
[1754980174984,0.19478178,119080.0,119070.0,0.88474633]
[1754980176098,0.22000178,119080.0,119070.0,0.88474633]
[1754980176299,0.22000366,119080.0,119070.0,0.83474633]
[1754980179378,0.22000366,119080.0,119070.0,0.1]
[1754980179379,1.43901632,119080.0,119070.0,0.1]
[1754980179608,1.51386723,119080.0,119070.0,0.1]
[1754980179833,1.5217383,119080.0,119070.0,0.1]
[1754980180526,1.5207383,119080.0,119070.0,0.1]
[1754980180757,1.5197383,119080.0,119070.0,0.1]
[1754980180981,0.91123197,119080.0,119070.0,0.1]
[1754980181393,1.5207383,119080.0,119070.0,0.1]
[1754980182105,1.5227383,119080.0,119070.0,0.1]
[1754980182761,1.11688179,119080.0,119070.0,0.1]
[1754980183571,0.30372564,119080.0,119070.0,0.1]
[1754980183773,1.11688179,119080.0,119070.0,0.1]
[1754980184646,0.30372564,119080.0,119070.0,0.1]
[1754980184863,1.11688179,119080.0,119070.0,0.1]
[1754980188454,1.10901072,119080.0,119070.0,0.1]
[1754980188668,1.11686773,119080.0,119070.0,0.1]
[1754980189343,0.30371158,119080.0,119070.0,0.1]
[1754980189555,1.11686773,119080.0,119070.0,0.1]
[1754980190297,0.30371158,119080.0,119070.0,0.1]
[1754980190515,1.11686773,119080.0,119070.0,0.1]
[1754980190706,1.11686658,119080.0,119070.0,0.1]
[1754980193199,1.24622658,119080.0,119070.0,0.1]
[1754980194001,0.30371043,119080.0,119070.0,0.10203]
[1754980194203,0.33339017,119080.0,119070.0,0.91812615]
[1754980194612,0.35083919,119080.0,119070.0,0.91812615]
[1754980195054,0.33339017,119080.0,119070.0,0.91812615]
[1754980195443,0.35083919,119080.0,119070.0,0.10497]
[1754980195854,0.34883919,119080.0,119070.0,0.10497]
[1754980196637,0.34983919,119080.0,119070.0,0.10497]
[1754980196838,0.34883919,119080.0,119070.0,0.10497]
[1754980197612,0.34883917,119080.0,119070.0,0.10497]
[1754980202782,0.34883917,119080.0,119070.0,0.1]
[1754980202783,1.16199532,119080.0,119070.0,0.1]
[1754980203065,1.24471857,119080.0,119070.0,0.1]
[1754980203996,0.43156242,119080.0,119070.0,0.1]
[1754980204226,0.43156242,119080.0,119070.0,0.10294]
[1754980204455,0.30220242,119080.0,119070.0,0.10497]
[1754980204690,0.34879917,119080.0,119070.0,0.91812615]
[1754980205129,0.34879917,119080.0,119070.0,0.10497]
[1754980205826,0.3488079,119080.0,119070.0,0.91812615]
[1754980206489,0.3488079,119080.0,119070.0,0.10497]
[1754980211037,1.16196405,119080.0,119070.0,0.1]
[1754980211243,0.3488079,119080.0,119070.0,0.1]
[1754980211579,1.16196405,119080.0,119070.0,0.1]
[1754980212164,0.3488079,119080.0,119070.0,0.1]
[1754980212368,1.2446873,119080.0,119070.0,0.1]
[1754980214721,1.2446932,119080.0,119070.0,0.1]